Cogmind - Beta 17.1 @@@ ROGUE MODE // 2026.08.25 @ 11:31:14 Player: ATOM Result: Destroyed by HM-T0R(R) with Subdweller Machine Gun Performance ------------- Evolutions (0) 0 Regions Visited (2) 400 Robots Destroyed (23) 115 Value Destroyed (649) 649 Prototype IDs (4) 80 Alien Tech Used (0) 0 Bonus (0) 0 TOTAL SCORE: 1244 Bonus ------- None Cogmind --------- Core Integrity 0/250 Matter 250/300 Energy 15/100 System Corruption 0% Temperature Cool (0) Movement Core (400) Ox7 Location -10/Subcaves Parts ------- > --- POWER (1) -------- (None) > --- PROPULSION (2) --- Wheel > --- UTILITY (2) ------ Large Storage Unit ECM Suite > --- WEAPON (2) ------- Medium Laser > --- INVENTORY (15) --- Light Nuclear Core Improved Heat Sink Light Armor Plating EM Pulse Gun Light Assault Rifle Barrage Gun Light Cannon Peak State ------------ > --- POWER ------------ Subdweller Power Source > --- PROPULSION ------- Wheel Wheel > --- UTILITY ---------- Large Storage Unit ECM Suite > --- WEAPON ----------- Medium Laser Grenade Launcher > --- INVENTORY -------- Ion Engine Light Ion Engine Light Nuclear Core Improved Heat Sink Light Armor Plating EM Pulse Gun Light Assault Rifle Barrage Gun Light Cannon [Rating: 9] Favorites ----------- Power Ion Engine Engine Ion Engine Propulsion Wheel Treads Light Treads Wheel Wheel Utility ECM Suite Device ECM Suite Storage Small Storage Unit Weapon Medium Laser Energy Gun Medium Laser Ballistic Gun Light Assault Rifle Launcher Grenade Launcher Special Melee Weapon Datajack Build | -11 -10 -10 ------- Run | Yrd Mat Sub Slots Evolved . | . . . Power . | . . . Propulsion . | . . . Utility . | . . . Weapon . | . . . Parts Attached 16 | 6 8 2 Power 4 | 1 1 2 Engine 4 | 1 1 2 Core . | . . . Reactor . | . . . Propulsion 4 | 2 2 . Treads 2 | 2 . . Leg . | . . . Wheel 2 | . 2 . Hover . | . . . Flight . | . . . Utility 3 | 1 2 . Device 1 | . 1 . Storage 2 | 1 1 . Processor . | . . . Hackware . | . . . Protection . | . . . Artifact . | . . . Weapon 5 | 2 3 . Energy Gun 2 | 1 1 . Energy Cannon . | . . . Ballistic Gun 1 | 1 . . Ballistic Cannon . | . . . Launcher 1 | . 1 . Special Weapon . | . . . Impact Weapon . | . . . Slashing Weapon . | . . . Piercing Weapon . | . . . Special Melee Weapon 1 | . 1 . Unidentified Prototypes . | . . . Parts Lost 5 | . 2 3 Power 1 | . . 1 Propulsion 2 | . 1 1 Utility . | . . . Weapon 2 | . 1 1 Highest Loss Streak 3 | . 2 3 To Critical Strikes . | . . . Average Backups 5 | 1 4 7 Power 1 | . 1 1 Propulsion . | 1 1 . Utility 1 | . . 1 Weapon 2 | . 1 3 Tool/Special . | . . . Unused Backups 6 | . . 6 Power 1 | . . 1 Propulsion . | . . . Utility 2 | . . 2 Weapon 3 | . . 3 Tool/Special . | . . . Average Slot Usage (%) 94 | . 91 99 Engine 13 | . 14 13 Treads 8 | . 15 . Wheel 19 | . 12 28 Device 10 | . 8 14 Storage 14 | . 14 14 Energy Gun 14 | . 14 14 Ballistic Gun 2 | . 4 . Launcher 9 | . 6 13 Peak Build Rating 9 | 6 8 9 Average Rating 7 | 4 6 8 On Entrance 4 | . 6 8 Avg Prop Armor Cover (%) 6 | . . 6 Naked Turns . | . . . Heaviest Build 32 | 13 30 32 Greatest Support 40 | 40 40 10 Greatest Overweight (x) 3 | . 1 3 Average Overweight (x) 1 | . . 2 Largest Inventory Capacity 15 | 8 15 15 Average Capacity 11 | 7 8 15 Most Carried 9 | 4 7 9 Average Carried 5 | 1 5 7 Final Capacity 15 | 8 15 15 Final Carried 7 | 3 6 7 Class Distribution -------------------- 100% | Mutant Dominant Class ---------------- Mutant | -10/Materials Mutant | -10/Subcaves Resources | -11 -10 -10 ----------- Run | Yrd Mat Sub Matter Collected 503 | 224 207 72 Remotely . | . . . Salvage Created 658 | . 515 143 Parts 49 | . 40 9 Haulers Intercepted . | . . . Recyclers Shooed . | . . . Parts Field Recycled . | . . . Retrieved Matter . | . . . Parts Self-Destructed 2 | . . 2 Prevented . | . . . Parts Restored . | . . . Kills | -11 -10 -10 ------- Run | Yrd Mat Sub Combat Hostiles Destroyed 20 | . 16 4 Guns 14 | . 10 4 AOE 6 | . 6 . Classes Destroyed 5 | . 3 2 Watcher 3 | . 3 . Swarmer 6 | . 6 . Grunt 10 | . 10 . Sentry 1 | . . 1 Subdweller 3 | . . 3 Best Kill Streak 5 | . 5 2 Combat Bots Only 5 | . 5 2 Max Kills in Single Turn 2 | . 2 1 Gunslinging . | . . . Exploded 2 | . 2 . Melee . | . . . Uniques/NPCs Destroyed . | . . . Combat | -11 -10 -10 -------- Run | Yrd Mat Sub Hostile Shots Fired 82 | . 60 22 Missed 20 | . 15 5 Hits 62 | . 45 17 Projectile 62 | . 45 17 Critical Strikes 3 | . . 3 Damage Taken 983 | . 582 401 Core 259 | . 68 191 Absorbed by Shields . | . . . Core Remaining (%) 100 | 100 . . Volleys Fired 67 | . 46 21 Largest 2 | . 2 2 Hottest 80 | . 80 80 Shots Fired 106 | . 78 28 Gun 90 | . 73 17 Cannon . | . . . Launcher 16 | . 5 11 Special . | . . . Kinetic 28 | . 28 . Thermal 40 | . 23 17 Explosive 16 | . 5 11 Electromagnetic 22 | . 22 . Robot Hit Streak 10 | . 10 10 Robot Miss Streak 3 | . 3 1 Penetration Max . | . . . Secondary Targets 2 | . 2 . Max Gunslinging Chain 1 | . 1 . Shots Hit Robots 69 | . 51 18 Core Hits 40 | . 30 10 Critical Kills . | . . . Critical Parts Destroyed . | . . . Critical Strikes 4 | . 1 3 Burn 4 | . 1 3 Melee Attacks 1 | . 1 . Impact . | . . . Slashing . | . . . Piercing . | . . . Sneak Attacks . | . . . Combat Hostiles . | . . . Follow-up Attacks . | . . . Damage Inflicted 1199 | . 858 341 Guns 698 | . 519 179 Cannons . | . . . Explosions 501 | . 339 162 Melee . | . . . Ramming . | . . . Kinetic 104 | . 104 . Thermal 412 | . 233 179 Explosive 470 | . 308 162 Electromagnetic 213 | . 213 . Impact . | . . . Slashing . | . . . Piercing . | . . . Highest Corruption . | . . . Average Corruption . | . . . Corruption Purged . | . . . Corruption Blocked . | . . . Overload Shots . | . . . Overflow Damage . | . . . Projectiles . | . . . Explosions . | . . . Melee . | . . . Knockbacks . | . . . Impact . | . . . Kinetic . | . . . Secondary . | . . . Self-Inflicted Damage 78 | . 33 45 Shots 3 | . 1 2 Rammed . | . . . Targets Rammed . | . . . Kicked . | . . . Crushed . | . . . Highest Temperature 104 | . 104 . Average Temperature 32 | . 32 . Received Heat Transfer 246 | . 228 18 Siege Activations . | . . . Martial Activations . | . . . Shielding Activations . | . . . Robots Disrupted . | . . . Combat Hostiles . | . . . Robots Corrupted . | . . . Combat Hostiles . | . . . Parts Fried 1 | . 1 . Impact Corruptions . | . . . Robots Melted . | . . . Combat Hostiles . | . . . Parts Melted 4 | . 3 1 Heat Transferred 1456 | . 716 740 Parts Sabotaged . | . . . Parts Stolen . | . . . Parts Stripped . | . . . Power Chain Reactions 1 | . 1 . Alert | -11 -10 -10 ------- Run | Yrd Mat Sub Maximum Alert Level . | . . . Low Security (%) 100 | 100 100 . Level 1 . | . . . Level 2 . | . . . Level 3 . | . . . Level 4 . | . . . Level 5 . | . . . High Security . | . . . Max Security . | . . . Peak Influence 183 | . 183 . Initial . | . . . Average 56 | . 60 . Influence Increases 513 | . 493 20 Destroy 0b10 Robot/C 340 | . 320 20 Destroy 0b10 Robot/NC 15 | . 15 . Destroy Leader 66 | . 66 . Successful Hack 15 | . 15 . Disable Machine 15 | . 15 . Destroy Structure 32 | . 32 . Lose Combat Pursuer 30 | . 30 . Influence Decreases 513 | . 493 20 Time Decay 390 | . 370 20 Lost Part 20 | . 20 . Purge Threat 103 | . 103 . Squads Dispatched 2 | . 2 . Investigation 1 | . 1 . Extermination . | . . . Reinforcement 1 | . 1 . Assault . | . . . Garrison . | . . . Intercept . | . . . Searches Triggered . | . . . Construction Impeded . | . . . Haulers Reinforced . | . . . Active Scanning Responses . | . . . Cargo Convoy Interrupts . | . . . Stealth | -11 -10 -10 --------- Run | Yrd Mat Sub Distress Signals 1 | . 1 . Communications Jammed . | . . . Distress Signals . | . . . Times Spotted 35 | . 29 6 Peak Tracking Total 6 | . 6 3 Tactical Retreats 6 | . 5 1 ECM-based Alert Blocks 7 | . 7 . Traps | -11 -10 -10 ------- Run | Yrd Mat Sub Traps Triggered 2 | . 2 . Indirectly . | . . . Trap Hack Attempts . | . . . Triggered . | . . . Disarmed . | . . . Reprogrammed . | . . . Reused . | . . . Traps Extracted . | . . . Installed . | . . . Triggered . | . . . Machines | -11 -10 -10 ---------- Run | Yrd Mat Sub Machines Disabled 1 | . 1 . Max in Single Turn 1 | . 1 . Machines Repaired . | . . . Machines Dismantled . | . . . Machines Sabotaged . | . . . Overloaded Fab Kills . | . . . Hacking | -11 -10 -10 --------- Run | Yrd Mat Sub Machines Accessed 9 | . 9 . Terminals 7 | . 7 . Fabricators . | . . . Repair Stations . | . . . Recycling Units 2 | . 2 . Scanalyzers . | . . . Garrison Access . | . . . Total Hacks 15 | . 15 . Successful 6 | . 6 . Failed 9 | . 9 . Catastrophic 2 | . 2 . Database Lockouts . | . . . Manual . | . . . Terminals 13 | . 13 . Fabricators . | . . . Repair Stations . | . . . Recycling Units 2 | . 2 . Scanalyzers . | . . . Garrison Access . | . . . Terminal Hacks 4 | . 4 . Prototype ID Bank 2 | . 2 . Unreport Threat 1 | . 1 . Zone Layout 1 | . 1 . Fabricator Hacks . | . . . Repair Station Hacks . | . . . Recycling Unit Hacks 2 | . 2 . Report Inventory 2 | . 2 . Scanalyzer . | . . . Garrison Access Hacks . | . . . Unauthorized Hacks . | . . . Terminals . | . . . Fabricators . | . . . Repair Stations . | . . . Recycling Units . | . . . Scanalyzers . | . . . Garrison Access . | . . . Data Cores Recovered . | . . . Used . | . . . Hacking Detections 6 | . 6 . Full Trace Events . | . . . Feedback Events . | . . . Feedback Blocked . | . . . Robot Schematics Acquired . | . . . Robots Built . | . . . Authchips . | . . . Time . | . . . Total Robot Build Rating . | . . . Part Schematics Acquired . | . . . Parts Built . | . . . Authchips . | . . . Time . | . . . Total Part Build Rating . | . . . Part Studies Acquired . | . . . Parts Repaired . | . . . Time . | . . . Parts Recycled . | . . . Recycled Matter . | . . . Retrieved Matter . | . . . Retrieved Components . | . . . Parts Scanalyzed . | . . . Part Schematics Acquired . | . . . Parts Damaged . | . . . Bothacking | -11 -10 -10 ------------ Run | Yrd Mat Sub Used RIF Installer . | . . . Robots Hacked 1 | . 1 . Non-combat . | . . . Combat 1 | . 1 . Robot Hacks Applied 1 | . 1 . parse_system 1 | . 1 . Relay Couplers Released . | . . . Fabnet Peak Effective % . | . . . Robots Rewired . | . . . Allies Hacked . | . . . Hacks Repelled . | . . . Allies | -11 -10 -10 -------- Run | Yrd Mat Sub Total Allies . | . . . Largest Group . | . . . Highest-Rated Group . | . . . Highest-Rated Ally . | . . . Total Orders . | . . . Ally Attacks . | . . . Total Damage . | . . . Kills . | . . . Allies Corrupted . | . . . Allies Melted . | . . . Intel | -11 -10 -10 ------- Run | Yrd Mat Sub Active Infowar (turns) 1447 | . 653 794 ECM 1447 | . 653 794 Robot Analysis Total . | . . . Derelict Logs Recovered 1 | . . 1 Drone Launches . | . . . Drone Recoveries . | . . . Exploration | -11 -10 -10 ------------- Run | Yrd Mat Sub Turns Passed 1968 | 79 1088 801 Spaces Moved 1457 | 42 815 600 Core 2 | 2 . . Treads 334 | 40 294 . Legs . | . . . Wheels 1121 | . 521 600 Hover . | . . . Flight . | . . . Fastest Speed 50 | 50 80 110 Average Speed 116 | 154 111 121 Slowest Speed 160 | 160 160 125 Overloaded Moves . | . . . Propulsion Burnouts . | . . . Robots Hopped . | . . . Potential Cave-ins . | . . . Cave-ins Triggered . | . . . Exploration Rate (%) 47 | 4 98 41 Regions Visited 2 Branch Regions 1 Pre-discovered Areas 1 | . . 1 Known Exits Taken . | . . . Unknown Exits Taken 2 | 1 1 . Scrap Searched 1 | . . 1 Spaces Dug . | . . . Terrain Destroyed 88 | . 28 60 Melee . | . . . Projectile . | . . . AOE 88 | . 28 60 Terrain Rammed . | . . . Walls Destroyed . | . . . Machines Disabled . | . . . Actions | -11 -10 -10 --------- Run | Yrd Mat Sub Total 1621 | 56 920 645 Wait 50 | . 34 16 Move 1455 | 41 814 600 Hop . | . . . Pick Up 22 | 9 10 3 Fast Attach . | . . . Attach 10 | 6 4 . Detach . | . . . Swap 9 | . 7 2 Drop 6 | . 4 2 Fire 67 | . 46 21 Melee 1 | . 1 . Ram . | . . . Kick . | . . . Crush . | . . . Escape Stasis . | . . . Rewire 1 | . . 1 Trap . | . . . Miscellaneous . | . . . Route ------- -11/Scrapyard -10/Materials (discovered 5 exits: [*Mat x3] / [*Min] / [*Sub]) -10/Subcaves (discovered 1 exit: [*Mat]) History --------- Turn | Location | Event 41 | -11/Scrapyard | Discovered new exit (range 15) 80 | -11/Scrapyard | Entered Materials 314 | -10/Materials | Build established: Mutant 338 | -10/Materials | Discovered new exit (range 11) 694 | -10/Materials | Discovered new exit (range 8) 832 | -10/Materials | Discovered new exit (range 12) 925 | -10/Materials | Discovered new exit (range 5) 1064 | -10/Materials | Discovered new exit (range 15) 1168 | -10/Materials | Entered Subcaves 1298 | -10/Subcaves | A Subdweller sparked back to life 1351 | -10/Subcaves | Core integrity fell below 50% 1377 | -10/Subcaves | Learned location of Storage (-7) 1628 | -10/Subcaves | Shifting Twisted Machinery released Battle Rifle 1633 | -10/Subcaves | Shifting Twisted Machinery released Sub. Monowheel 1763 | -10/Subcaves | Discovered new exit (range 15) 1938 | -10/Subcaves | Ambushed by Subdweller buried in earth 1940 | -10/Subcaves | Ambushed by Subdweller buried in earth 1943 | -10/Subcaves | Ambushed by Subdweller buried in earth 1959 | -10/Subcaves | Core integrity fell below 20% 1969 | -10/Subcaves | Destroyed by HM-T0R(R) with Subdweller Machine Gun Last Messages --------------- 01682_ Acquired 7 matter. 01686_ Acquired 13 matter. 01763_ EXIT=FOUND 01937_ The unstable cave ceiling collapses. 01939_ KB-2R0(R): "ARGHSUB!" 01939_ Ion Engine destroyed. 01940_ KB-2R0(R) destroyed. 01941_ 60-TZK(R): "FREEEEDUMB!" 01944_ HM-T0R(R): "NOSTUCKSUB!" 01944_ Grenade Launcher destroyed. 01946_ 60-TZK(R) suffers critical hit (Burn). 01946_ Sub. Monowheel melted. 01946_ 60-TZK(R) destroyed. 01951_ The unstable cave ceiling collapses. 01954_ Sub. Power Source crushed. 01954_ HM-T0R(R) suffers critical hit (Burn). 01955_ The unstable cave ceiling collapses. 01964_ Wheel destroyed. 01966_ HM-T0R(R) affixes Scrap Shield Fragment to Scrap Shield. Map ----- +----------------------------------------------------+ | ????# ##???##??## ##??????????????? | | ##### ##??# ### ##???????????????? | | #?## ##????????????????? | | ### ##?????????????????? | | ### ## #??????????????????? | | ### ##### ####???????????????? | | #???## ##??????????????? | | #????# #??????????????? | | # #???# ## #??????????????? | | ## ##???## ### #??????????????? | | ## ## ##????######## ##??????????????? | | ## ## #??####?#### #???????????????? | | ### ## #### ### #???????????????? | | #?#### ## ##???????????????? | | #????## ##???????????????? | | ?????## ##??????????????? | | #????# " "#??????????????? | | #??# " " " ""#??????????????? | | #?## < " " " " "##?????????????? | | #??#### " " " #?????????????? | | ####?????#### ## ### #?????????????? | | #???????????## ##### ### ##?????????????? | | ?????????????####??## "#??????????????? | | ???????????????????# "" ""##?????????????? | | ???????????????????# "" #?????????????? | | ???????????????????### @ #?????????????? | | ????????????????????# # ##?????????????? | | ????????????????????# *R ##??????????????? | | ???????????????????## =%! #???????????????? | | ???????????????????# " # #??????????????? | | ??????????????????# """ #??????????????? | | ??????????????????## #??????????????? | | ???????????????????## # ##??????????????? | | ????????????????????# #######???????????????? | | ???????????????????? ?????????????????????? | | ???????????????????? ?????????????????????? | | ??????????????????? ?????????????????????? | | ??????????????????? ?????????????????????? | | ?????????????????? ?????????????????????? | | ??????????????????## # ?????????????????????? | | ??????????????????? ?#?????????????????????? | | ???????????????????# ???????????????????????? | | ???????????????????? ???????????????????????? | | ?????????????????????????????????????????????? | | ?????????????????????????????????????????????? | | ?????????????????????????????????????????????? | | ?????????????????????????????????????????????? | | ?????????????????????????????????????????????? | | ?????????????????????????????????????????????? | | ?????????????????????????????????????????????? | +----------------------------------------------------+ Best States ------------- Heat Dissipation 25 Energy Generation 15 Energy Capacity 250 Matter Stores 300 Matter Capacity 300 Sight Range 16 Terrain Scan Density 10 ECM Strength 1 Evasion (%) 44 Recoil Reduction 2 Item Schematics ----------------- None Robot Schematics ------------------ None Fabricated ------------ Nothing Repaired ---------- Nothing Studied --------- None Alien Tech Used ----------------- None Achievements -------------- None Challenges ------------ None Game ------ Seed SpliceCarbideMantle Manual? 0 Play Time 00:19:44 Cumulative 31.4 hours Start 2026.08.25 @ 10:49:28 End 2026.08.25 @ 11:31:14 Sessions 1 Manual Loads 0 Difficulty Rogue Special Mode None Game No. 47 Rogue 47 Adventurer 0 Explorer 0 Win Type - Total 0 Types 0/0/0/0/0/0/0/0/0/0 Lore% 17 Gallery% 20 Achievement% 18 Wizard Run 0 Options --------- Layout 1 ASCII 0 Keyboard 0 Movement Mouse Keybinds 0 Fullscreen 1 Font 16/SmallcapsGlow Map View 50x40 Zoom Use 0% Tactical HUD 1 Map Filters NONE Filters NONE Steam SD RUN: 94f9e203-d1cc-412d-a8f6-cc09f1070b2c